bitfinex-derivatives/quotes_BTCF0:USTF0_20250528
["timestamp","ask_amount","ask_price","bid_price","bid_amount"]
[1748395233680,1.44972735,108880.0,108870.0,0.12103848]
[1748395233885,1.02912735,108880.0,108870.0,0.18337922]
[1748395234573,1.02912735,108880.0,108870.0,0.18786131]
[1748395235688,1.02912735,108880.0,108870.0,0.23726131]
[1748395236185,1.02912735,108880.0,108870.0,0.23725705]
[1748395236686,1.06568555,108880.0,108870.0,0.23725705]
[1748395236880,1.20055866,108880.0,108870.0,0.13975365]
[1748395237080,1.20055866,108880.0,108870.0,0.12552057]
[1748395237287,1.16400046,108880.0,108870.0,0.13963365]
[1748395237588,1.16400046,108880.0,108870.0,0.13975365]
[1748395237788,1.04286011,108880.0,108870.0,0.13975365]
[1748395238181,1.04286011,108880.0,108870.0,0.18895365]
[1748395238381,1.04286011,108880.0,108870.0,0.18894857]
[1748395238581,1.02912735,108880.0,108870.0,0.18894857]
[1748395238777,1.02936735,108880.0,108870.0,0.18894857]
[1748395238982,1.02936735,108880.0,108870.0,0.23764857]
[1748395239990,1.06591429,108880.0,108870.0,0.23764692]
[1748395240684,1.06591474,108880.0,108870.0,0.23764692]
[1748395241597,0.96779474,108880.0,108870.0,0.23764692]
[1748395241783,1.06591474,108880.0,108870.0,0.23764692]
[1748395242388,1.54785509,108880.0,108870.0,0.10919492]
[1748395242995,1.54785509,108880.0,108870.0,0.10907573]
[1748395243295,1.44973509,108880.0,108870.0,0.10919573]
[1748395243494,1.96877509,108880.0,108870.0,0.10919573]
[1748395243791,1.84763474,108880.0,108870.0,0.10919573]
[1748395244992,1.84764912,108880.0,108870.0,0.10919573]
[1748395245788,1.84764912,108880.0,108870.0,0.09496857]
[1748395245985,1.84764912,108880.0,108870.0,0.10919991]
[1748395246589,1.96878947,108880.0,108870.0,0.10919991]
[1748395247294,1.84764912,108880.0,108870.0,0.10919991]
[1748395248694,1.84764912,108880.0,108870.0,0.09496857]
[1748395248898,1.84764912,108880.0,108870.0,0.10920707]
[1748395249398,1.84768039,108880.0,108870.0,0.10920707]
[1748395250098,1.84768039,108880.0,108870.0,0.10921088]
[1748395250393,1.84769337,108880.0,108870.0,0.10909088]
[1748395250793,1.89055979,108880.0,108870.0,0.10909088]
[1748395251294,1.89055979,108880.0,108870.0,0.10921088]
[1748395251506,1.89055979,108880.0,108870.0,0.10922252]
[1748395253192,1.89055979,108880.0,108870.0,0.10922354]
[1748395253688,1.89060892,108880.0,108870.0,0.10922354]
[1748395254689,1.89060892,108880.0,108870.0,0.10922601]
[1748395255898,1.89860892,108880.0,108870.0,0.11022601]
[1748395256788,1.89860892,108880.0,108870.0,0.11006166]
[1748395257601,1.77726857,108880.0,108870.0,0.11006448]
[1748395257895,1.89840892,108880.0,108870.0,0.11006448]
[1748395258104,1.89845742,108880.0,108870.0,0.11006448]
[1748395259300,1.95559255,108880.0,108870.0,0.11006448]
[1748395260595,1.95559255,108880.0,108860.0,0.47221607]
[1748395260596,0.30475385,108870.0,108860.0,0.47221607]
[1748395260791,0.57337468,108870.0,108860.0,0.56221607]
[1748395261396,0.69451503,108870.0,108860.0,0.56221607]
[1748395262198,0.69751503,108870.0,108860.0,0.56221607]
[1748395262603,0.70151503,108870.0,108860.0,0.56321607]
[1748395263103,0.70151503,108870.0,108860.0,0.61351607]
[1748395263406,0.70151503,108870.0,108860.0,0.25271607]
[1748395263989,0.74443392,108870.0,108860.0,0.25271607]
[1748395264802,0.70151503,108870.0,108860.0,0.25271607]
[1748395265110,0.70151503,108870.0,108860.0,0.25719816]
[1748395265111,0.70156487,108870.0,108860.0,0.25719816]
[1748395265992,1.00156487,108870.0,108860.0,0.25719816]
[1748395269607,1.00156187,108870.0,108860.0,0.25719816]
[1748395270310,0.56042152,108870.0,108860.0,0.44082856]
[1748395270504,0.56042152,108870.0,108860.0,0.46082856]
[1748395270505,0.68156187,108870.0,108860.0,0.46082856]
[1748395272302,0.72453534,108870.0,108860.0,0.46082856]
[1748395273110,0.72453534,108870.0,108860.0,0.27719816]
[1748395273715,0.56668765,108870.0,108860.0,0.27719816]
[1748395274016,0.72451737,108870.0,108860.0,0.27719816]
[1748395275517,0.72451737,108870.0,108860.0,0.46082856]
[1748395276117,0.72451737,108870.0,108860.0,0.27719816]
[1748395276413,0.60337702,108870.0,108860.0,0.27719816]
[1748395276617,0.72451737,108870.0,108860.0,0.27719816]
[1748395277110,0.72451737,108870.0,108860.0,0.65082856]
[1748395277615,0.54090737,108870.0,108860.0,0.65082856]
[1748395278114,0.54092633,108870.0,108860.0,0.65082856]
[1748395278716,0.32128598,108870.0,108860.0,1.01162856]
[1748395278932,0.32128598,108870.0,108860.0,1.33894523]
[1748395278933,0.2416135,108870.0,108860.0,1.33894523]
[1748395279135,0.2416135,108870.0,108860.0,1.28556765]
[1748395279324,0.2416135,108870.0,108860.0,1.27202741]
[1748395279629,0.2416135,108870.0,108860.0,1.26064112]
[1748395280024,0.2416135,108870.0,108860.0,1.35852112]
[1748395280937,0.2406135,108870.0,108860.0,1.35852112]
[1748395281235,0.36175385,108870.0,108860.0,1.35852112]
[1748395281425,0.006,108870.0,108860.0,1.35852112]
[1748395281639,0.006,108870.0,108860.0,1.53742372]
[1748395281822,0.006,108870.0,108860.0,3.36175389]
[1748395281823,0.005,108870.0,108860.0,3.36175389]
[1748395282024,0.005,108870.0,108860.0,3.50971024]
[1748395282233,0.00013752,108890.0,108880.0,0.1835967]
[1748395282539,0.00013752,108890.0,108880.0,2.49614763]
[1748395282740,0.00013752,108890.0,108880.0,2.78770693]
[1748395283231,0.00013752,108890.0,108880.0,2.69414281]
[1748395283839,0.00013752,108890.0,108880.0,2.7758024]
[1748395284330,0.00013752,108890.0,108880.0,2.5258024]
[1748395284529,0.00113752,108890.0,108880.0,2.7758024]
[1748395284726,0.00113752,108890.0,108880.0,4.2758024]
[1748395285733,0.00013752,108890.0,108880.0,4.2778024]
[1748395286328,0.00013752,108890.0,108880.0,4.16015594]
[1748395286637,0.00013752,108890.0,108880.0,4.20995423]
[1748395286835,2e-08,108890.0,108880.0,4.27844053]
[1748395287039,2e-08,108890.0,108880.0,4.29049395]
[1748395288134,2e-08,108890.0,108880.0,4.19692983]
[1748395288331,2e-08,108890.0,108880.0,4.27835111]
[1748395289330,2e-08,108890.0,108880.0,4.17503181]
[1748395289729,2e-08,108890.0,108880.0,2.77835111]
[1748395290240,2e-08,108890.0,108880.0,4.22855282]
[1748395290542,2e-08,108890.0,108880.0,4.12523352]
[1748395292345,2e-08,108890.0,108880.0,4.05759833]
[1748395292545,2e-08,108890.0,108880.0,4.12523352]
[1748395292733,2e-08,108890.0,108880.0,4.05759833]
[1748395293135,2e-08,108890.0,108880.0,4.12523352]
[1748395293639,2e-08,108890.0,108880.0,4.16653352]
[1748395293841,2e-08,108890.0,108880.0,4.21293352]
[1748395294041,1.9973352,108930.0,108920.0,0.1835295]
[1748395294245,1.9973352,108930.0,108920.0,3.20200985]
[1748395294246,1.8610226,108930.0,108920.0,3.20200985]
[1748395294546,1.8610226,108930.0,108920.0,3.25080985]
[1748395294745,1.8610226,108930.0,108920.0,4.89191285]
[1748395294938,1.8610226,108930.0,108920.0,5.15763719]
[1748395294939,1.8138226,108930.0,108920.0,5.15763719]
[1748395295338,1.8158226,108930.0,108920.0,5.10792857]
[1748395295745,1.8158226,108930.0,108920.0,5.02650729]
[1748395296137,1.8158226,108930.0,108920.0,5.10792857]
[1748395296333,1.8158226,108930.0,108920.0,5.02650729]
[1748395296548,0.99836842,108930.0,108920.0,5.3749654]
[1748395296845,0.86062112,108930.0,108920.0,5.8623654]
[1748395297038,0.64180994,108930.0,108920.0,5.90856525]
[1748395297235,0.26074514,108930.0,108920.0,5.97620044]
[1748395297438,0.11916184,108930.0,108920.0,5.97620044]
[1748395297646,0.06431034,108930.0,108920.0,5.97720044]
[1748395297831,0.03660724,108930.0,108920.0,5.97720044]
[1748395298033,0.03660724,108930.0,108920.0,5.89328994]
[1748395298229,0.03660724,108930.0,108920.0,4.88203113]
[1748395298450,0.03660724,108930.0,108920.0,5.40810706]
[1748395298746,0.03660724,108930.0,108920.0,5.53224741]
[1748395298946,0.03660724,108930.0,108920.0,5.53212741]
[1748395299149,0.03660724,108930.0,108920.0,5.53124741]
[1748395299351,0.03660724,108930.0,108920.0,5.53524741]
[1748395299652,0.03660724,108930.0,108920.0,4.03524741]
[1748395300232,0.03660724,108930.0,108920.0,5.53524741]
[1748395302549,0.03660724,108930.0,108920.0,5.04784741]
[1748395303250,0.00327726,108970.0,108960.0,0.1834621]
[1748395303450,0.09867726,108970.0,108960.0,2.1561428]
[1748395303747,0.09867726,108970.0,108960.0,2.08550245]
[1748395303748,0.28212246,108970.0,108960.0,2.08550245]
[1748395303938,0.09867726,108970.0,108960.0,2.08550245]
[1748395304453,0.10167726,108970.0,108960.0,2.13670245]
[1748395304854,0.1003,108970.0,108960.0,3.2986028]
[1748395305157,0.0515,108970.0,108960.0,3.43054106]
[1748395305349,0.00113752,108980.0,108970.0,0.1834452]
[1748395305543,0.0469,108990.0,108980.0,0.1834284]
[1748395305544,0.09478883,108990.0,108980.0,0.1834284]
[1748395305744,0.09478883,108990.0,108980.0,3.1098084]
[1748395305745,0.27820003,108990.0,108980.0,3.1098084]
[1748395306044,0.27820003,108990.0,108980.0,3.06515709]
[1748395306351,0.27820003,108990.0,108980.0,2.54607709]
[1748395306548,0.28020003,108990.0,108980.0,3.06511709]
[1748395307650,0.28220003,108990.0,108980.0,3.06511709]
[1748395308351,0.28220003,108990.0,108980.0,3.18625744]
[1748395308548,0.32970003,108990.0,108980.0,3.18625744]
[1748395308950,0.32970003,108990.0,108980.0,3.19528047]
[1748395309553,0.32970003,108990.0,108980.0,3.20924527]
[1748395309759,0.32970003,108990.0,108980.0,3.57004527]
[1748395309951,0.32970003,108990.0,108980.0,3.44890492]
[1748395310945,0.32970003,108990.0,108980.0,3.45338701]
[1748395311151,0.32970003,108990.0,108980.0,2.93434701]
[1748395311357,0.32970003,108990.0,108980.0,3.49436701]
[1748395311857,0.32970003,108990.0,108980.0,3.49448701]
[1748395312054,0.32970003,108990.0,108980.0,3.49464701]
[1748395312353,0.51331005,108990.0,108980.0,3.49464701]
[1748395312755,0.51331005,108990.0,108980.0,3.47464701]
[1748395315457,0.64586537,108990.0,108980.0,1.96550408]
[1748395315950,0.64586537,108990.0,108980.0,1.96574408]
[1748395316159,0.64586537,108990.0,108980.0,1.26331558]
[1748395316456,0.64586537,108990.0,108980.0,1.78239558]
[1748395316753,0.64586537,108990.0,108980.0,1.78251558]
[1748395316959,0.64586537,108990.0,108980.0,1.78239558]
[1748395317148,0.64586537,108990.0,108980.0,1.74113558]
[1748395317345,0.64586537,108990.0,108980.0,1.92456408]
[1748395321055,0.64586537,108990.0,108980.0,1.22201558]
[1748395321258,0.64586537,108990.0,108980.0,1.50332418]
[1748395321558,0.64586537,108990.0,108980.0,1.92436418]
[1748395323150,0.64586537,108990.0,108980.0,1.88436418]
[1748395324144,0.64586537,108990.0,108980.0,1.18201558]
[1748395324356,0.64586537,108990.0,108980.0,1.70153558]
[1748395324558,0.64586537,108990.0,108980.0,1.46332418]
[1748395324753,0.64586537,108990.0,108980.0,1.88496418]
[1748395325348,1.02586537,108990.0,108980.0,0.86201558]
[1748395325555,0.1834286,108980.0,108970.0,0.46204273]
[1748395325867,0.1834623,108960.0,108950.0,0.97480019]
[1748395326047,0.1834623,108960.0,108950.0,1.67675013]
[1748395326048,0.63588034,108960.0,108950.0,1.67675013]
[1748395326253,0.73528034,108960.0,108950.0,1.63658386]
[1748395326559,0.60272502,108960.0,108950.0,1.59071436]
[1748395326759,0.60272502,108960.0,108950.0,1.59083436]
[1748395326957,0.60272502,108960.0,108950.0,1.59071436]
[1748395327161,0.60272502,108960.0,108950.0,0.93832816]
[1748395327365,0.73528034,108960.0,108950.0,1.54480726]
[1748395327581,0.73528034,108960.0,108950.0,1.54492726]
[1748395328166,0.73528034,108960.0,108950.0,1.54892726]
[1748395328364,0.60272502,108960.0,108950.0,1.54892726]
[1748395329967,0.71279548,108960.0,108950.0,1.54892726]
[1748395330165,0.71279548,108960.0,108950.0,1.36544816]
[1748395330557,0.71279548,108960.0,108950.0,1.36520816]
[1748395331060,0.71279548,108960.0,108950.0,1.36516816]
[1748395331269,0.71279548,108960.0,108950.0,0.94232816]
[1748395331564,1.03279548,108960.0,108950.0,0.582]
[1748395331761,0.71279548,108960.0,108950.0,0.795]
[1748395332868,0.71279548,108960.0,108950.0,0.69708]
[1748395334171,1.08279548,108960.0,108950.0,0.69708]
[1748395335160,0.89918546,108960.0,108950.0,0.69708]
[1748395335363,1.08279548,108960.0,108950.0,0.69708]
[1748395336666,1.08279548,108960.0,108950.0,0.27112]
[1748395336869,1.44359548,108960.0,108950.0,0.6938]
[1748395337072,1.53537548,108960.0,108950.0,0.27112]
[1748395337969,1.53537548,108960.0,108950.0,0.271]
[1748395338366,1.53537548,108960.0,108950.0,0.27]
[1748395338577,1.53737548,108960.0,108950.0,0.27]
[1748395338878,1.53737548,108960.0,108950.0,0.27012]
[1748395339263,1.53737548,108960.0,108950.0,0.27460209]
[1748395339567,1.53737548,108960.0,108950.0,0.12460209]
[1748395339771,1.2947497,108960.0,108950.0,0.12460209]
[1748395339963,1.53737548,108960.0,108950.0,0.12460209]
[1748395341766,1.6231703,108960.0,108950.0,0.12460209]
[1748395342160,0.91876452,108960.0,108950.0,0.12460209]
[1748395342457,0.64278259,108960.0,108950.0,0.48540209]
[1748395342659,0.64278259,108960.0,108950.0,0.76838119]
[1748395342862,0.76409548,108960.0,108950.0,0.76838119]
[1748395343567,0.76409548,108960.0,108950.0,0.58490209]
[1748395343764,0.76409548,108960.0,108950.0,0.76838119]
[1748395343967,0.54478259,108960.0,108950.0,0.93774256]
[1748395344270,0.54478259,108960.0,108950.0,1.61054256]
[1748395345162,0.54478259,108960.0,108950.0,1.54118119]
[1748395349277,0.66609548,108960.0,108950.0,0.71490209]
[1748395349474,0.71299548,108960.0,108950.0,1.13730209]
[1748395349775,0.71299548,108960.0,108950.0,1.13718209]
[1748395350166,0.71299548,108960.0,108950.0,1.13730209]
[1748395350968,0.71599548,108960.0,108950.0,1.13730209]
[1748395351475,0.71599548,108960.0,108950.0,1.20720317]
[1748395351783,0.71399548,108960.0,108950.0,1.20720317]
[1748395351977,0.71799548,108960.0,108950.0,1.20720317]
[1748395352181,0.4753697,108960.0,108950.0,1.26068227]
[1748395352375,0.59668259,108960.0,108950.0,1.65084854]
[1748395352680,0.54978259,108960.0,108950.0,1.65084854]
[1748395352979,0.54978259,108960.0,108950.0,1.65089501]
[1748395353176,0.54978259,108960.0,108950.0,1.39746836]
[1748395353678,0.54978259,108960.0,108950.0,1.20746836]
[1748395353864,0.54978259,108960.0,108950.0,1.39094756]
[1748395354475,0.58648588,108960.0,108950.0,1.39094756]
[1748395355081,0.63538588,108960.0,108950.0,1.39094756]
[1748395358787,0.63538588,108960.0,108950.0,1.20746836]
[1748395360584,0.63538588,108960.0,108950.0,1.39094646]
[1748395360779,0.58648588,108960.0,108950.0,1.39094646]
[1748395360984,0.58648588,108960.0,108950.0,1.56094646]
[1748395361283,0.24485968,108960.0,108950.0,1.93134352]
[1748395361590,0.24485968,108960.0,108950.0,1.84956713]
[1748395361774,0.24485968,108960.0,108950.0,1.72825424]
[1748395362379,0.24485968,108960.0,108950.0,1.81001461]
[1748395363381,0.36617257,108960.0,108950.0,1.81001461]
[1748395363596,0.36617257,108960.0,108950.0,1.38761461]
[1748395363890,0.36617257,108960.0,108950.0,1.81233461]
[1748395364279,0.36617257,108960.0,108950.0,1.76170513]
[1748395364492,0.36617257,108960.0,108950.0,1.67994476]
[1748395364684,0.36617257,108960.0,108950.0,1.57671096]
[1748395365493,0.36617257,108960.0,108950.0,1.93751096]
[1748395367089,0.24485968,108960.0,108950.0,1.93751096]
[1748395368193,0.24485968,108960.0,108950.0,1.93449591]
[1748395368387,0.24485968,108960.0,108950.0,2.2530183]
[1748395368584,0.24485968,108960.0,108950.0,2.19892336]
[1748395369589,0.24485968,108960.0,108950.0,2.10535936]
[1748395369792,0.24485968,108960.0,108950.0,2.09182022]
[1748395371096,0.36617257,108960.0,108950.0,2.09146269]
[1748395371593,0.36617257,108960.0,108950.0,2.17320198]
[1748395373088,0.36617257,108960.0,108950.0,1.74884198]
[1748395373089,0.41367257,108960.0,108950.0,1.74884198]
[1748395373401,0.59728259,108960.0,108950.0,2.17029384]
[1748395373589,0.59728259,108960.0,108950.0,2.17041384]
[1748395374094,0.59728259,108960.0,108950.0,2.2736431]
[1748395374792,0.59728259,108960.0,108950.0,2.17041384]
[1748395375597,0.59728259,108960.0,108950.0,2.27365551]
[1748395378404,0.59728259,108960.0,108950.0,2.27317551]
[1748395378603,0.59728259,108960.0,108950.0,2.22256479]
[1748395378793,0.59728259,108960.0,108950.0,2.1408255]
[1748395379103,0.59728259,108960.0,108950.0,2.03747624]
[1748395379793,0.59728259,108960.0,108950.0,2.03759624]
[1748395381197,0.59728259,108960.0,108950.0,2.27317271]
[1748395381398,0.59728259,108960.0,108950.0,2.27317416]
[1748395381598,0.59728259,108960.0,108950.0,2.03759624]
[1748395381897,0.59728259,108960.0,108950.0,1.74799624]
[1748395382096,0.59728259,108960.0,108950.0,1.74763624]
[1748395383203,0.59728259,108960.0,108950.0,1.98322338]
[1748395384613,0.59728259,108960.0,108950.0,1.93260643]
[1748395384815,0.59728259,108960.0,108950.0,1.82937553]
[1748395384999,0.4759697,108960.0,108950.0,1.87999994]
[1748395385198,0.59728259,108960.0,108950.0,1.98323122]
[1748395385702,0.59728259,108960.0,108950.0,1.88000295]
[1748395385902,0.59728259,108960.0,108950.0,2.27323476]
[1748395386104,0.59728259,108960.0,108950.0,2.27287476]
[1748395389007,0.71859548,108960.0,108950.0,1.61585666]
[1748395389210,1.11615574,108960.0,108950.0,0.41941378]
[1748395389518,0.80535574,108960.0,108950.0,0.29768254]
[1748395389904,0.80536186,108960.0,108950.0,0.29770796]
[1748395390201,0.80536186,108960.0,108950.0,0.24703646]
[1748395390410,0.80536186,108960.0,108950.0,0.29770169]
[1748395391214,0.80536186,108960.0,108950.0,0.24703646]
[1748395391415,1.07536186,108960.0,108950.0,0.24703646]
[1748395391802,1.43616186,108960.0,108950.0,0.29769284]
[1748395392007,1.47915343,108960.0,108950.0,0.16522123]
[1748395393006,1.47915343,108960.0,108950.0,0.12460209]
[1748395393717,1.90231343,108960.0,108950.0,0.12460209]
[1748395394220,1.90222184,108960.0,108950.0,0.12460209]
[1748395396111,1.15906184,108960.0,108950.0,0.12460209]
[1748395396419,1.03774895,108960.0,108950.0,0.12460209]
[1748395396618,1.08774895,108960.0,108950.0,0.12460209]
[1748395396820,1.04480671,108960.0,108950.0,0.19471771]
[1748395397015,1.04480671,108960.0,108950.0,0.37819661]
[1748395397016,0.68400671,108960.0,108950.0,0.37819661]
[1748395397320,0.2815838,108960.0,108950.0,1.27568013]
[1748395397512,0.24485968,108960.0,108950.0,1.27568013]
[1748395397912,0.54978259,108960.0,108950.0,0.78220123]
[1748395398114,0.59898259,108960.0,108950.0,1.22568013]
[1748395399323,0.59698259,108960.0,108950.0,1.22568013]
[1748395399724,0.59398259,108960.0,108950.0,1.08457191]
[1748395399921,0.61598259,108960.0,108950.0,1.08457191]
[1748395400125,0.61598259,108960.0,108950.0,1.089054]
[1748395400426,0.59598259,108960.0,108950.0,1.089054]
[1748395402129,0.54678259,108960.0,108950.0,1.089054]
[1748395402819,0.54678259,108960.0,108950.0,1.05943486]
[1748395403128,0.00769738,108960.0,108950.0,1.2348438]
[1748395403422,0.19115938,108960.0,108950.0,1.7225403]
[1748395403629,0.19115938,108960.0,108950.0,3.32577446]
[1748395403824,0.19115938,108960.0,108950.0,1.82577446]
[1748395404125,0.19115938,108960.0,108950.0,1.82560157]
[1748395404329,0.19115938,108960.0,108950.0,3.07560157]
[1748395404528,0.18915938,108960.0,108950.0,3.32560157]
[1748395404718,0.18815938,108960.0,108950.0,3.32560157]
[1748395405025,0.18815938,108960.0,108950.0,3.39517736]
[1748395405232,0.18815938,108960.0,108950.0,3.08752335]
[1748395405623,0.18815938,108960.0,108950.0,3.14517736]
[1748395406221,0.18815938,108960.0,108950.0,3.08752335]
[1748395406530,0.18815938,108960.0,108950.0,3.14517736]
[1748395406721,0.18815938,108960.0,108950.0,3.05161324]
[1748395406923,0.18815938,108960.0,108950.0,3.05142882]
[1748395407325,0.18815938,108960.0,108950.0,3.14466891]
[1748395407623,0.18815938,108960.0,108950.0,2.93157602]
[1748395407833,0.23585938,108960.0,108950.0,3.35425602]
[1748395408135,0.23585938,108960.0,108950.0,3.08534902]
[1748395409029,0.23585938,108960.0,108950.0,3.35409837]
[1748395410034,0.23585938,108960.0,108950.0,3.29659228]
[1748395411327,0.23585938,108960.0,108950.0,3.24609112]
[1748395411534,0.23585938,108960.0,108950.0,3.29646112]
[1748395411832,0.23585938,108960.0,108950.0,3.21727915]
[1748395412135,0.23585938,108960.0,108950.0,3.21739915]
[1748395412325,0.23585938,108960.0,108950.0,3.22089211]
[1748395412521,0.23585938,108960.0,108950.0,3.27134153]
[1748395412721,0.23585938,108960.0,108950.0,3.22085211]
[1748395413936,0.23585938,108960.0,108950.0,3.13929198]
[1748395414337,0.23585938,108960.0,108950.0,3.03605782]
[1748395417535,0.23585938,108960.0,108950.0,3.39685782]
[1748395418642,0.23585938,108960.0,108950.0,2.12063896]
[1748395418643,0.54078229,108960.0,108950.0,2.12063896]
[1748395418940,0.58838229,108960.0,108950.0,2.12051896]
[1748395419138,0.58838229,108960.0,108950.0,2.12063896]
[1748395420236,0.58838229,108960.0,108950.0,2.12064394]
[1748395421038,0.58838229,108960.0,108950.0,1.41584504]
[1748395421238,0.58838229,108960.0,108950.0,1.89657117]
[1748395421631,0.58838229,108960.0,108950.0,1.94800848]
[1748395421937,0.58838229,108960.0,108950.0,1.84478395]
[1748395422129,0.58838229,108960.0,108950.0,1.89548395]
[1748395422330,0.58838229,108960.0,108950.0,1.53468395]
[1748395423533,0.4670694,108960.0,108950.0,1.53468395]
[1748395423841,0.4670694,108960.0,108950.0,1.66819684]
[1748395424138,0.4670694,108960.0,108950.0,1.54688395]
[1748395427234,0.4670694,108960.0,108950.0,1.62843394]
[1748395427543,0.58838229,108960.0,108950.0,1.62843394]
[1748395428635,0.58838229,108960.0,108950.0,1.67899853]
[1748395428835,0.58838229,108960.0,108950.0,1.29938505]
[1748395429038,0.70969518,108960.0,108950.0,0.19710505]
[1748395429237,1.38049518,108960.0,108950.0,0.61042813]
[1748395429545,1.38049518,108960.0,108950.0,0.19100418]
[1748395429546,1.50898448,108960.0,108950.0,0.19100418]
[1748395429835,1.55190998,108960.0,108950.0,0.19088418]
[1748395430242,1.50898448,108960.0,108950.0,0.19100418]
[1748395431132,1.50896512,108960.0,108950.0,0.19100418]
[1748395431841,1.50896512,108960.0,108950.0,0.26102302]
[1748395432849,1.47227518,108960.0,108950.0,0.26102302]
[1748395433043,1.50895644,108960.0,108950.0,0.19462093]
[1748395433347,1.50895644,108960.0,108950.0,0.19450093]
[1748395434137,1.50895644,108960.0,108950.0,0.19462093]
[1748395434841,1.50895644,108960.0,108950.0,0.19450093]
[1748395435035,1.50895644,108960.0,108950.0,0.19462093]
[1748395435439,1.47227518,108960.0,108950.0,0.19462093]
[1748395435640,1.38049518,108960.0,108950.0,0.19462093]
[1748395435844,1.38049518,108960.0,108950.0,0.07365189]
[1748395436650,1.38049518,108960.0,108950.0,0.04460209]
[1748395437354,1.38049518,108960.0,108950.0,0.04448209]
[1748395437648,1.38049518,108960.0,108950.0,0.04460209]
[1748395441140,1.90033518,108960.0,108950.0,0.04460209]
[1748395441857,1.90033518,108960.0,108950.0,0.04448209]
[1748395442152,1.90033518,108960.0,108950.0,0.04460209]
[1748395446048,1.90033518,108960.0,108950.0,0.02058439]
[1748395447753,1.90005518,108960.0,108950.0,0.02058439]
[1748395450356,1.38049518,108960.0,108950.0,0.02058439]
[1748395450547,1.38049518,108960.0,108950.0,0.07098439]
[1748395450947,1.38049518,108960.0,108950.0,0.12328439]
[1748395454149,1.30208827,108960.0,108950.0,0.15029359]
[1748395454349,1.30208827,108960.0,108950.0,0.12328439]
[1748395454653,1.30208827,108960.0,108950.0,0.15029359]
[1748395456657,1.42340116,108960.0,108950.0,0.15029359]
[1748395457055,1.42343621,108960.0,108950.0,0.15029359]
[1748395458255,1.42343621,108960.0,108950.0,9e-08]
[1748395458459,1.45983069,108960.0,108950.0,0.06]
[1748395458661,1.45983069,108960.0,108950.0,0.06012]
[1748395458950,1.45983069,108960.0,108930.0,0.0405981]
[1748395458951,0.36710572,108940.0,108930.0,0.0405981]
[1748395459153,0.1835125,108930.0,108920.0,0.6471249]
[1748395459460,0.6844994,108930.0,108920.0,0.28226194]
[1748395459644,0.6844994,108930.0,108920.0,0.28238194]
[1748395459851,0.69512792,108930.0,108920.0,0.28238194]
[1748395460055,0.69512792,108930.0,108920.0,0.70326194]
[1748395460262,0.69512792,108930.0,108920.0,0.70426194]
[1748395460457,1.05592792,108930.0,108920.0,0.28338194]
[1748395460858,1.05592792,108930.0,108920.0,0.28326194]
[1748395461160,1.05592792,108930.0,108920.0,0.28338194]
[1748395461357,1.05627731,108930.0,108920.0,0.28338194]
[1748395462360,1.05627731,108930.0,108920.0,0.28438194]
[1748395462552,1.1775902,108930.0,108920.0,0.27029244]
[1748395462955,1.05627731,108930.0,108920.0,0.27017244]
[1748395463155,1.05627731,108930.0,108920.0,0.27029244]
[1748395464965,1.05627731,108930.0,108920.0,0.2837466]
[1748395465664,1.05623951,108930.0,108920.0,0.2837466]
[1748395467056,1.05623951,108930.0,108920.0,0.27029244]
[1748395467057,1.37623951,108930.0,108920.0,0.27029244]
[1748395467465,1.37623951,108930.0,108920.0,0.27017244]
[1748395467756,1.37623951,108930.0,108920.0,0.27029244]
[1748395468461,1.01543951,108930.0,108920.0,0.27029244]
[1748395468652,1.37623951,108930.0,108920.0,0.27029244]
[1748395470264,1.37622143,108930.0,108920.0,0.27029244]
[1748395471365,1.01542143,108930.0,108920.0,0.27029244]
[1748395471556,1.37622143,108930.0,108920.0,0.27029244]
[1748395471763,1.49753432,108930.0,108920.0,4e-08]
[1748395471963,1.49753432,108930.0,108920.0,0.04000004]
[1748395472467,1.49753432,108930.0,108920.0,0.09300004]
[1748395474671,1.49752677,108930.0,108920.0,0.09300004]
[1748395475061,1.49752677,108930.0,108920.0,0.00258774]
[1748395475261,1.49752677,108930.0,108920.0,0.00706983]
[1748395478971,1.46084633,108930.0,108920.0,0.00706983]
[1748395479172,1.49752438,108930.0,108920.0,0.00706983]
[1748395480369,1.00626215,108930.0,108920.0,0.11386983]
[1748395480574,0.9695841,108930.0,108920.0,0.52696983]
[1748395481360,0.6495841,108930.0,108920.0,0.71049923]
[1748395481564,0.6495841,108930.0,108920.0,0.52696983]
[1748395481764,0.41237408,108930.0,108920.0,0.71049923]
[1748395481974,0.36197408,108930.0,108920.0,0.71049923]
[1748395482272,0.36197408,108930.0,108920.0,0.52696983]
[1748395482669,0.36197408,108930.0,108920.0,0.71049923]
[1748395483776,0.39867329,108930.0,108920.0,0.5674794]
[1748395484379,0.39867329,108930.0,108920.0,0.52708983]
[1748395484575,0.45117329,108930.0,108920.0,0.5675994]
[1748395485276,0.63478331,108930.0,108920.0,0.9362594]
[1748395485775,0.51347042,108930.0,108920.0,0.9362594]
[1748395485967,0.63478331,108930.0,108920.0,0.9362594]
[1748395491077,0.636632,108930.0,108920.0,0.9362594]
[1748395497691,0.59993279,108930.0,108920.0,0.9362594]
[1748395497884,0.63670355,108930.0,108920.0,0.9362594]
[1748395498379,1.08801644,108930.0,108920.0,0.5152994]
[1748395498583,1.08801644,108930.0,108920.0,0.1544994]
[1748395498778,1.1310089,108930.0,108920.0,0.1543794]
[1748395499580,1.1310089,108930.0,108920.0,0.1544994]
[1748395504486,0.88838312,108930.0,108920.0,0.1544994]
[1748395504990,1.1310089,108930.0,108920.0,0.1544994]
[1748395507387,1.1310089,108930.0,108920.0,0.04062957]
[1748395507388,1.4918089,108930.0,108920.0,0.04062957]
[1748395507702,1.4918089,108930.0,108910.0,5e-08]
[1748395507703,0.183529,108920.0,108910.0,5e-08]
[1748395507986,1.411803,108920.0,108910.0,0.05000005]
[1748395508201,1.46911814,108920.0,108910.0,0.05012005]
[1748395508490,1.41328218,108920.0,108910.0,0.05]
[1748395508689,1.41328218,108920.0,108910.0,0.05012]
[1748395508891,1.47059732,108920.0,108910.0,0.05012]
[1748395509191,1.47059732,108920.0,108910.0,0.05212]
[1748395509394,1.41328218,108920.0,108910.0,0.05212]
[1748395509591,0.1835459,108910.0,108900.0,0.0685356]
[1748395509791,0.1835627,108900.0,108890.0,0.00091832]
[1748395509982,0.1835627,108900.0,108890.0,0.05091832]
[1748395509983,1.49693877,108900.0,108890.0,0.05091832]
[1748395510387,1.49841795,108900.0,108890.0,0.05091832]
[1748395510598,1.25579217,108900.0,108890.0,0.05091832]
[1748395510784,0.64499217,108900.0,108890.0,0.05091832]
[1748395510986,0.88826815,108900.0,108890.0,0.05091832]
[1748395511191,0.88926815,108900.0,108890.0,0.05603832]
[1748395512496,0.88926815,108900.0,108890.0,0.06003832]
[1748395512882,1.14926815,108900.0,108890.0,0.06003832]
[1748395516397,0.87926815,108900.0,108890.0,0.06003832]
[1748395516599,0.87926815,108900.0,108890.0,0.11273832]
[1748395516893,0.75795526,108900.0,108890.0,0.11273832]
[1748395518401,0.75695526,108900.0,108890.0,0.10373832]
[1748395518586,0.63564237,108900.0,108890.0,0.10373832]
[1748395518782,0.75695526,108900.0,108890.0,0.10373832]